fUSD/lending_fUSD_20250106
["ID","MTS","AMOUNT","RATE_DAILY","PERIOD"]
[347896543,1736187039911,-500.0,8.948e-05,2]
[347896545,1736187039920,-116.07628973,8.948e-05,2]
[347896547,1736187039931,-383.92371027,8.948e-05,2]
[347896549,1736187039940,-271.73128973,8.948e-05,2]
[347896552,1736187039957,-228.26871027,8.948e-05,2]
[347896554,1736187039966,-500.0,8.948e-05,2]
[347896556,1736187039977,-352.76,8.948e-05,2]
[347896558,1736187039986,-500.0,8.948e-05,2]
[347896560,1736187039995,-500.0,8.948e-05,2]
[347896562,1736187040004,-245.35841347,8.948e-05,2]
[347896564,1736187040014,-308.28,8.948e-05,2]
[347896566,1736187040023,-500.0,8.948e-05,2]
[347896568,1736187040032,-500.0,8.948e-05,2]
[347896570,1736187040041,-500.0,8.948e-05,2]
[347896572,1736187040050,-546.89551481,8.948e-05,2]
[347896574,1736187040060,-500.0,8.948e-05,2]
[347896576,1736187040069,-500.0,8.948e-05,2]
[347896578,1736187040079,-500.0,8.948e-05,2]
[347896581,1736187040088,-500.0,8.948e-05,2]
[347896583,1736187040097,-260.60039628,8.948e-05,2]
[347896585,1736187040106,-500.0,8.948e-05,2]
[347896587,1736187040116,-500.0,8.948e-05,2]
[347896589,1736187040126,-500.0,8.948e-05,2]
[347896591,1736187040135,-500.0,8.948e-05,2]
[347896593,1736187040144,-500.0,8.948e-05,2]
[347896595,1736187040153,-500.0,8.948e-05,2]
[347896597,1736187040162,-500.0,8.948e-05,2]
[347896599,1736187040171,-500.0,8.948e-05,2]
[347896601,1736187040181,-500.0,8.948e-05,2]
[347896603,1736187040190,-500.0,8.948e-05,2]
[347896605,1736187040199,-500.0,8.948e-05,2]
[347896607,1736187040208,-500.0,8.948e-05,2]
[347896608,1736187040218,-500.0,8.948e-05,2]
[347896610,1736187040228,-464.46,8.948e-05,2]
[347896613,1736187040238,-500.0,8.948e-05,2]
[347896615,1736187040248,-500.0,8.948e-05,2]
[347896618,1736187040257,-500.0,8.948e-05,2]
[347896620,1736187040266,-500.0,8.948e-05,2]
[347896622,1736187040276,-500.0,8.948e-05,2]
[347896623,1736187040285,-500.0,8.948e-05,2]
[347896626,1736187040294,-500.0,8.948e-05,2]
[347896627,1736187040303,-500.0,8.948e-05,2]
[347896630,1736187040313,-500.0,8.948e-05,2]
[347896631,1736187040322,-500.0,8.948e-05,2]
[347896633,1736187040331,-500.0,8.948e-05,2]
[347896635,1736187040341,-500.0,8.948e-05,2]
[347896637,1736187040350,-500.0,8.948e-05,2]
[347896639,1736187040359,-500.0,8.948e-05,2]
[347896641,1736187040369,-500.0,8.948e-05,2]
[347896643,1736187040379,-500.0,8.948e-05,2]
[347896645,1736187040388,-500.0,8.948e-05,2]
[347896647,1736187040398,-500.0,8.948e-05,2]
[347896649,1736187040407,-500.0,8.948e-05,2]
[347896651,1736187040417,-500.0,8.948e-05,2]
[347896653,1736187040426,-500.0,8.948e-05,2]
[347896655,1736187040436,-500.0,8.948e-05,2]
[347896658,1736187040445,-500.0,8.948e-05,2]
[347896660,1736187040455,-500.0,8.948e-05,2]
[347896661,1736187040464,-500.0,8.948e-05,2]
[347896663,1736187040473,-500.0,8.948e-05,2]
[347896666,1736187040483,-500.0,8.948e-05,2]
[347896668,1736187040492,-500.0,8.948e-05,2]
[347896670,1736187040503,-500.0,8.948e-05,2]
[347896672,1736187040512,-500.0,8.948e-05,2]
[347896674,1736187040521,-500.0,8.948e-05,2]
[347896676,1736187040531,-500.0,8.948e-05,2]
[347896677,1736187040539,-500.0,8.948e-05,2]
[347896680,1736187040549,-500.0,8.948e-05,2]
[347896681,1736187040558,-500.0,8.948e-05,2]
[347896683,1736187040567,-500.0,8.948e-05,2]
[347896686,1736187040577,-500.0,8.948e-05,2]
[347896687,1736187040586,-500.0,8.948e-05,2]
[347896688,1736187040595,-150.0,9e-05,2]
[347896689,1736187040605,-150.0,9e-05,2]
[347896690,1736187040617,-150.32158698,9e-05,2]
[347896691,1736187040627,-172.18944151,9e-05,2]
[347896692,1736187040636,-150.0,9e-05,2]
[347896693,1736187040646,-150.00000001,9e-05,2]
[347896694,1736187040656,-150.0,9e-05,2]
[347896695,1736187040666,-277.53698568,9e-05,2]
[347896696,1736187040676,-150.48340736,9e-05,2]
[347896697,1736187040686,-150.0,9e-05,2]
[347896698,1736187040696,-900.0,9e-05,3]
[347896699,1736187040706,-150.0,9.033e-05,2]
[347896700,1736187040715,-500.0,9.046e-05,2]
[347896701,1736187040726,-2150.74,9.046e-05,2]
[347896702,1736187040735,-255.0,9.046e-05,2]
[347896703,1736187040744,-1935.64,9.046e-05,2]
[347896704,1736187040754,-626.91,9.046e-05,2]
[347896705,1736187040763,-500.0,9.046e-05,2]
[347896706,1736187040772,-500.0,9.046e-05,2]
[347896707,1736187040782,-2173.08,9.046e-05,2]
[347896708,1736187040791,-539.53,9.046e-05,2]
[347896709,1736187040800,-500.0,9.046e-05,2]
[347896710,1736187040810,-500.0,9.047e-05,2]
[347896712,1736187040819,-500.0,9.047e-05,2]
[347896714,1736187040829,-500.0,9.047e-05,2]
[347896716,1736187040839,-500.0,9.047e-05,2]
[347896718,1736187040848,-194.00543071,9.047e-05,2]
[347896731,1736187041010,-298.2975,9.046e-05,2]
[347896732,1736187041021,-1617.8525,9.046e-05,2]
[347896733,1736187041031,-305.99456929,9.047e-05,2]
[347896734,1736187041042,-500.0,9.047e-05,2]
[347896735,1736187041051,-500.0,9.047e-05,2]
[347896736,1736187041061,-500.0,9.047e-05,2]
[347896737,1736187041071,-250.91861147,9.047e-05,2]
[347896738,1736187041082,-249.08138853,9.047e-05,2]
[347896739,1736187041091,-500.0,9.047e-05,2]
[347896741,1736187041101,-77.23452014,9.047e-05,2]
[347896742,1736187041112,-126.76547986,9.047e-05,2]
[347896743,1736187041121,-177.40075514,9.047e-05,2]
[347896744,1736187041154,-322.59924486,9.047e-05,2]
[347896745,1736187041163,-346.47639184,9.047e-05,2]
[347896746,1736187041175,-153.52360816,9.047e-05,2]
[347896747,1736187041184,-507.39,9.047e-05,2]
[347896748,1736187041193,-420.59981098,9.047e-05,2]
[347896749,1736187041210,-72.00018902,9.047e-05,2]
[347896750,1736187041219,-400.57678099,9.047e-05,2]
[347896751,1736187041232,-99.42321901,9.047e-05,2]
[347896752,1736187041242,-434.61934869,9.047e-05,2]
[347896753,1736187041253,-65.38065131,9.047e-05,2]
[347896754,1736187041262,-364.96334799,9.047e-05,2]
[347896755,1736187041291,-135.03665201,9.047e-05,2]
[347896757,1736187041300,-500.0,9.047e-05,2]
[347896759,1736187041309,-500.0,9.047e-05,2]
[347896761,1736187041318,-500.0,9.047e-05,2]
[347896763,1736187041328,-500.0,9.047e-05,2]
[347896764,1736187041337,-500.0,9.047e-05,2]
[347896766,1736187041346,-500.0,9.047e-05,2]
[347896768,1736187041356,-500.0,9.047e-05,2]
[347896769,1736187041365,-500.0,9.047e-05,2]
[347896770,1736187041373,-500.0,9.047e-05,2]
[347896771,1736187041382,-500.0,9.047e-05,2]
[347896772,1736187041391,-500.0,9.047e-05,2]
[347896773,1736187041400,-500.0,9.047e-05,2]
[347896774,1736187041409,-500.0,9.047e-05,2]
[347896775,1736187041418,-500.0,9.047e-05,2]
[347896776,1736187041427,-500.0,9.047e-05,2]
[347896777,1736187041437,-500.0,9.047e-05,2]
[347896778,1736187041446,-500.0,9.047e-05,2]
[347896779,1736187041455,-599.34,9.047e-05,2]
[347896780,1736187041463,-183.49911024,9.047e-05,2]
[347896781,1736187041472,-978.35,9.047e-05,2]
[347896782,1736187041483,-500.0,9.047e-05,2]
[347896784,1736187041492,-500.0,9.047e-05,2]
[347896786,1736187041501,-500.0,9.047e-05,2]
[347896788,1736187041510,-500.0,9.047e-05,2]
[347896790,1736187041519,-947.36,9.047e-05,2]
[347896792,1736187041528,-500.0,9.047e-05,2]
[347896794,1736187041538,-500.0,9.047e-05,2]
[347896796,1736187041547,-556.12282354,9.047e-05,2]
[347896798,1736187041556,-500.0,9.047e-05,2]
[347896800,1736187041566,-500.0,9.047e-05,2]
[347896802,1736187041576,-500.0,9.047e-05,2]
[347896804,1736187041585,-500.0,9.047e-05,2]
[347896806,1736187041594,-1522.98,9.047e-05,2]
[347896808,1736187041604,-500.0,9.047e-05,2]
[347896811,1736187041618,-1991.59,9.047e-05,2]
[347896812,1736187041627,-500.0,9.047e-05,2]
[347896814,1736187041636,-500.0,9.047e-05,2]
[347896816,1736187041645,-500.0,9.047e-05,2]
[347896818,1736187041655,-500.0,9.047e-05,2]
[347896820,1736187041664,-500.0,9.047e-05,2]
[347896822,1736187041675,-1240.14,9.047e-05,2]
[347896824,1736187041684,-500.0,9.047e-05,2]
[347896826,1736187041694,-500.0,9.047e-05,2]
[347896828,1736187041703,-770.92,9.047e-05,2]
[347896830,1736187041713,-820.77,9.047e-05,2]
[347896832,1736187041722,-500.0,9.047e-05,2]
[347896834,1736187041732,-500.0,9.047e-05,2]
[347896836,1736187041742,-500.0,9.047e-05,2]
[347896838,1736187041752,-746.7,9.047e-05,2]
[347896840,1736187041761,-500.0,9.048e-05,2]
[347896842,1736187041771,-500.0,9.048e-05,2]
[347896844,1736187041781,-1181.16,9.048e-05,2]
[347896847,1736187041790,-500.0,9.048e-05,2]
[347896848,1736187041800,-3390.67,9.048e-05,2]
[347896850,1736187041809,-500.0,9.048e-05,2]
[347896852,1736187041818,-500.0,9.048e-05,2]
[347896855,1736187041827,-2186.69,9.048e-05,2]
[347896856,1736187041836,-495.81721314,9.048e-05,2]
[347896858,1736187041846,-613.5,9.048e-05,2]
[347896860,1736187041855,-374.01011871,9.048e-05,2]
[347896862,1736187041864,-500.0,9.048e-05,2]
[347896864,1736187041874,-1025.03,9.048e-05,2]
[347896866,1736187041883,-500.0,9.048e-05,2]
[347896868,1736187041892,-500.0,9.048e-05,2]
[347896870,1736187041901,-500.0,9.048e-05,2]
[347896872,1736187041911,-500.0,9.048e-05,2]
[347896874,1736187041922,-1773.4,9.048e-05,2]
[347896876,1736187041931,-377.78,9.048e-05,2]
[347896878,1736187041940,-500.0,9.048e-05,2]
[347896880,1736187041949,-500.0,9.048e-05,2]
[347896882,1736187041959,-452.7,9.048e-05,2]
[347896884,1736187041967,-500.0,9.048e-05,2]
[347896886,1736187041978,-500.0,9.048e-05,2]
[347896888,1736187041987,-500.0,9.048e-05,2]
[347896890,1736187041997,-500.0,9.048e-05,2]
[347896892,1736187042006,-819.87,9.048e-05,2]
[347896894,1736187042015,-500.0,9.048e-05,2]
[347896896,1736187042024,-538.0,9.048e-05,2]
[347896898,1736187042033,-3116.08,9.048e-05,2]
[347896900,1736187042043,-898.76,9.048e-05,2]
[347896902,1736187042052,-690.05,9.048e-05,2]
[347896904,1736187042062,-1153.69,9.048e-05,2]
[347896906,1736187042071,-1220.63639438,9.048e-05,2]
[347896936,1736187042337,-608.11212382,9.048e-05,2]
[347897048,1736187043338,-2500.0,8.574e-05,2]
[347897052,1736187043348,-38.5014818,9.048e-05,2]
[347897054,1736187043359,-1126.05,9.048e-05,2]
[347897056,1736187043368,-500.0,9.049e-05,2]
[347897058,1736187043377,-500.0,9.049e-05,2]
[347897061,1736187043387,-1191.19,9.049e-05,2]
[347897062,1736187043396,-500.0,9.049e-05,2]
[347897064,1736187043405,-500.0,9.049e-05,2]
[347897066,1736187043414,-500.0,9.049e-05,2]
[347897069,1736187043424,-500.0,9.049e-05,2]
[347897070,1736187043433,-992.81,9.049e-05,2]
[347897072,1736187043442,-1424.11,9.049e-05,2]
[347897075,1736187043451,-3335.38,9.049e-05,2]
[347897076,1736187043460,-500.0,9.049e-05,2]
[347897078,1736187043469,-500.0,9.049e-05,2]
[347897080,1736187043478,-540.67,9.049e-05,2]
[347897103,1736187043690,-2298.24,9.049e-05,2]
[347897105,1736187043700,-150.0,9.067e-05,2]
[347897107,1736187043709,-150.0,9.067e-05,2]
[347897109,1736187043718,-150.0,9.067e-05,2]
[347897111,1736187043728,-1500.0,9.099e-05,2]
[347897113,1736187043739,-150.0,9.1e-05,2]
[347897115,1736187043748,-150.0,9.133e-05,2]
[347897117,1736187043758,-150.0,9.133e-05,2]
[347897119,1736187043767,-150.0,9.133e-05,2]
[347897121,1736187043776,-150.0,9.167e-05,2]
[347897123,1736187043785,-150.0,9.2e-05,2]
[347897125,1736187043795,-150.0,9.2e-05,2]
[347897127,1736187043804,-150.0,9.2e-05,2]
[347897129,1736187043813,-500.0,9.221e-05,2]
[347897131,1736187043823,-500.0,9.221e-05,2]
[347897133,1736187043831,-500.0,9.221e-05,2]
[347897135,1736187043841,-500.0,9.221e-05,2]
[347897137,1736187043850,-500.0,9.221e-05,2]
[347897139,1736187043859,-500.0,9.221e-05,2]
[347897141,1736187043868,-500.0,9.221e-05,2]
[347897143,1736187043878,-915.49,9.221e-05,2]
[347897145,1736187043887,-500.0,9.221e-05,2]
[347897147,1736187043896,-656.61,9.221e-05,2]
[347897149,1736187043906,-655.83,9.221e-05,2]
[347897151,1736187043915,-500.0,9.221e-05,2]
[347897153,1736187043925,-500.0,9.221e-05,2]
[347897155,1736187043934,-500.0,9.221e-05,2]
[347897157,1736187043943,-500.0,9.221e-05,2]
[347897159,1736187043952,-625.885529,9.221e-05,2]
[347897161,1736187043962,-3786.25318649,9.221e-05,2]
[347897164,1736187043978,-2201.40681351,9.221e-05,2]
[347897166,1736187043989,-903.84,9.221e-05,2]
[347897168,1736187043998,-628.552091,9.221e-05,2]
[347897170,1736187044007,-1529.58,9.221e-05,2]
[347897172,1736187044017,-1168.1,9.221e-05,2]
[347897174,1736187044027,-1426.34,9.221e-05,2]
[347897175,1736187044036,-500.0,9.221e-05,2]
[347897177,1736187044045,-500.0,9.221e-05,2]
[347897178,1736187044054,-503.96,9.221e-05,2]
[347897179,1736187044064,-500.0,9.221e-05,2]
[347897180,1736187044073,-500.0,9.221e-05,2]
[347897181,1736187044083,-930.81,9.221e-05,2]
[347897182,1736187044092,-1478.77,9.221e-05,2]
[347897183,1736187044102,-500.0,9.221e-05,2]
[347897184,1736187044111,-500.0,9.221e-05,2]
[347897185,1736187044120,-500.0,9.221e-05,2]
[347897186,1736187044129,-567.95,9.221e-05,2]
[347897187,1736187044139,-500.0,9.221e-05,2]
[347897189,1736187044148,-442.32,9.221e-05,2]
[347897191,1736187044157,-743.74,9.221e-05,2]
[347897193,1736187044166,-500.0,9.221e-05,2]
[347897194,1736187044175,-500.0,9.221e-05,2]
[347897195,1736187044184,-500.0,9.221e-05,2]
[347897196,1736187044194,-1923.01,9.221e-05,2]
[347897197,1736187044203,-548.18,9.222e-05,2]
[347897198,1736187044212,-647.22279437,9.222e-05,2]
[347897199,1736187044221,-530.85,9.222e-05,2]
[347897200,1736187044231,-599.81735687,9.222e-05,2]
[347897201,1736187044241,-581.56,9.222e-05,2]
[347897202,1736187044250,-500.0,9.222e-05,2]
[347897203,1736187044259,-500.0,9.222e-05,2]
[347897204,1736187044269,-500.0,9.222e-05,2]
[347897205,1736187044278,-51.44632121,9.222e-05,2]
[347897206,1736187044290,-448.55367879,9.222e-05,2]
[347897207,1736187044300,-256.44632121,9.222e-05,2]
[347897208,1736187044311,-243.55367879,9.222e-05,2]
[347897209,1736187044321,-193.62242165,9.222e-05,2]
[347897210,1736187044330,-500.0,9.222e-05,2]
[347897211,1736187044339,-242.38680311,9.222e-05,2]
[347897212,1736187044354,-61.75319689,9.222e-05,2]
[347897213,1736187044364,-500.0,9.222e-05,2]
[347897214,1736187044374,-500.0,9.222e-05,2]
[347897215,1736187044383,-500.0,9.222e-05,2]
[347897216,1736187044392,-344.84,9.222e-05,2]
[347897217,1736187044402,-500.0,9.222e-05,2]
[347897218,1736187044411,-500.0,9.222e-05,2]
[347897220,1736187044420,-500.0,9.222e-05,2]
[347897222,1736187044429,-500.0,9.222e-05,2]
[347897224,1736187044439,-187.90062226,9.222e-05,2]
[347897226,1736187044448,-500.0,9.222e-05,2]
[347897228,1736187044458,-500.0,9.222e-05,2]
[347897230,1736187044467,-500.0,9.222e-05,2]
[347897232,1736187044476,-500.0,9.222e-05,2]
[347897234,1736187044487,-339.41566688,9.222e-05,2]
[347897235,1736187044499,-160.58433312,9.222e-05,2]
[347897236,1736187044508,-500.0,9.222e-05,2]
[347897237,1736187044517,-189.49875198,9.222e-05,2]
[347897238,1736187044528,-362.35124802,9.222e-05,2]
[347897239,1736187044537,-123.9979913,9.222e-05,2]
[347897240,1736187044548,-329.49060594,9.222e-05,2]
[347897241,1736187044559,-46.51140276,9.222e-05,2]
[347897242,1736187044568,-270.73859724,9.222e-05,2]
[347897243,1736187044597,-84.85140276,9.222e-05,2]
[347897244,1736187044607,-500.0,9.222e-05,2]
[347897245,1736187044619,-500.0,9.222e-05,2]
[347897246,1736187044628,-500.0,9.222e-05,2]
[347897247,1736187044638,-500.0,9.222e-05,2]
[347897248,1736187044647,-500.0,9.222e-05,2]
[347897249,1736187044657,-469.14859724,9.222e-05,2]
[347897250,1736187044669,-30.85140276,9.222e-05,2]
[347897251,1736187044679,-463.28859724,9.222e-05,2]
[347897252,1736187044692,-36.71140276,9.222e-05,2]
[347897253,1736187044702,-500.0,9.222e-05,2]
[347897254,1736187044711,-500.0,9.222e-05,2]
[347897255,1736187044720,-500.0,9.222e-05,2]
[347897256,1736187044729,-211.03748111,9.222e-05,2]
[347897262,1736187046322,-533.25,8.501e-05,2]
[347897263,1736187046332,-500.0,8.673e-05,2]
[347897264,1736187046341,-500.0,8.673e-05,2]
[347897265,1736187046350,-500.0,8.947e-05,2]
[347897266,1736187046359,-500.0,8.947e-05,2]
[347897267,1736187046368,-184.14685988,9e-05,2]
[347897268,1736187046379,-71.85314012,9e-05,2]
[347897269,1736187046388,-500.0,9.221e-05,2]
[347897270,1736187046398,-500.0,9.221e-05,2]
[347897271,1736187046407,-253.38279808,9.222e-05,2]
[347897272,1736187046418,-84.48972081,9.222e-05,2]
[347897273,1736187046427,-500.0,9.222e-05,2]
[347897274,1736187046437,-500.0,9.222e-05,2]
[347897275,1736187046446,-500.0,9.222e-05,2]
[347897276,1736187046455,-500.0,9.222e-05,2]
[347897277,1736187046464,-398.01497048,9.222e-05,2]
[347897278,1736187046475,-101.98502952,9.222e-05,2]
[347897279,1736187046485,-500.0,9.222e-05,2]
[347897280,1736187046494,-566.69345333,9.222e-05,2]
[347897281,1736187046504,-500.0,9.222e-05,2]
[347897282,1736187046513,-500.0,9.222e-05,2]
[347897283,1736187046522,-500.0,9.222e-05,2]
[347897284,1736187046532,-527.32830859,9.222e-05,2]
[347897285,1736187046541,-500.0,9.222e-05,2]
[347897286,1736187046550,-500.0,9.222e-05,2]
[347897287,1736187046559,-500.0,9.222e-05,2]
[347897288,1736187046568,-500.0,9.222e-05,2]
[347897289,1736187046578,-500.0,9.222e-05,2]
[347897290,1736187046587,-354.99320806,9.222e-05,2]
[347897291,1736187046599,-145.00679194,9.222e-05,2]
[347897292,1736187046608,-500.0,9.222e-05,2]
[347897293,1736187046620,-500.0,9.222e-05,2]
[347897294,1736187046629,-500.0,9.222e-05,2]
[347897295,1736187046638,-183.42719406,9.222e-05,2]
[347897296,1736187046650,-316.57280594,9.222e-05,2]
[347897297,1736187046660,-500.0,9.222e-05,2]
[347897298,1736187046671,-172.38,9.222e-05,2]
[347897299,1736187046682,-609.05,9.222e-05,2]
[347897300,1736187046693,-586.02,9.222e-05,2]
[347897301,1736187046703,-500.0,9.222e-05,2]
[347897302,1736187046712,-500.0,9.222e-05,2]
[347897303,1736187046721,-500.0,9.222e-05,2]
[347897304,1736187046731,-643.7,9.222e-05,2]
[347897305,1736187046742,-244.24,9.222e-05,2]
[347897306,1736187046752,-500.0,9.222e-05,2]
[347897307,1736187046762,-500.0,9.222e-05,2]
[347897308,1736187046771,-500.0,9.222e-05,2]
[347897309,1736187046780,-500.0,9.222e-05,2]
[347897310,1736187046790,-500.0,9.222e-05,2]
[347897311,1736187046799,-500.0,9.222e-05,2]
[347897312,1736187046809,-649.58,9.222e-05,2]
[347897313,1736187046818,-500.0,9.222e-05,2]
[347897314,1736187046827,-500.0,9.229e-05,2]
[347897315,1736187046836,-150.0,9.233e-05,2]
[347897316,1736187046846,-1000.0,9.247e-05,2]
[347897317,1736187046855,-150.0,9.267e-05,2]
[347897318,1736187046864,-150.0,9.267e-05,2]
[347897319,1736187046873,-150.0,9.267e-05,2]
[347897320,1736187046883,-1800.0,9.3e-05,3]
[347897321,1736187046892,-150.0,9.3e-05,2]
[347897322,1736187046901,-500.0,9.32e-05,2]
[347897323,1736187046911,-2150.74,9.32e-05,2]
[347897324,1736187046920,-1935.64,9.32e-05,2]
[347897325,1736187046929,-626.91,9.32e-05,2]
[347897326,1736187046938,-500.0,9.32e-05,2]
[347897327,1736187046947,-2173.08,9.32e-05,2]
[347897328,1736187046956,-539.53,9.32e-05,2]
[347897329,1736187046966,-542.51,9.32e-05,2]
[347897330,1736187046975,-1916.15,9.32e-05,2]
[347897331,1736187046985,-500.0,9.321e-05,2]
[347897332,1736187046994,-500.0,9.321e-05,2]
[347897333,1736187047004,-500.0,9.321e-05,2]
[347897334,1736187047013,-500.0,9.321e-05,2]
[347897335,1736187047023,-500.0,9.321e-05,2]
[347897336,1736187047032,-500.0,9.321e-05,2]
[347897337,1736187047042,-500.0,9.321e-05,2]
[347897338,1736187047051,-500.0,9.321e-05,2]
[347897339,1736187047060,-500.0,9.321e-05,2]
[347897340,1736187047069,-500.0,9.321e-05,2]
[347897341,1736187047079,-500.0,9.321e-05,2]
[347897342,1736187047088,-507.39,9.321e-05,2]
[347897343,1736187047098,-500.0,9.321e-05,2]
[347897344,1736187047108,-500.0,9.321e-05,2]
[347897345,1736187047117,-500.0,9.321e-05,2]
[347897346,1736187047127,-500.0,9.321e-05,2]
[347897347,1736187047136,-500.0,9.321e-05,2]
[347897348,1736187047145,-500.0,9.321e-05,2]
[347897349,1736187047154,-500.0,9.321e-05,2]
[347897350,1736187047164,-500.0,9.321e-05,2]
[347897351,1736187047173,-500.0,9.321e-05,2]
[347897352,1736187047182,-500.0,9.321e-05,2]
[347897353,1736187047191,-500.0,9.321e-05,2]
[347897354,1736187047201,-500.0,9.321e-05,2]
[347897355,1736187047210,-500.0,9.321e-05,2]
[347897356,1736187047219,-500.0,9.321e-05,2]
[347897357,1736187047228,-570.27034393,9.321e-05,2]
[347897358,1736187047238,-500.0,9.321e-05,2]
[347897359,1736187047247,-500.0,9.321e-05,2]
[347897360,1736187047256,-500.0,9.321e-05,2]
[347897361,1736187047266,-298.14,9.321e-05,2]
[347897362,1736187047275,-500.0,9.321e-05,2]
[347897363,1736187047285,-978.35,9.321e-05,2]
[347897364,1736187047295,-500.0,9.321e-05,2]
[347897365,1736187047307,-500.0,9.321e-05,2]
[347897366,1736187047316,-500.0,9.321e-05,2]
[347897367,1736187047325,-500.0,9.321e-05,2]
[347897368,1736187047334,-947.36,9.321e-05,2]
[347897369,1736187047343,-500.0,9.321e-05,2]
[347897370,1736187047352,-500.0,9.321e-05,2]
[347897371,1736187047362,-500.0,9.321e-05,2]
[347897372,1736187047371,-500.0,9.321e-05,2]
[347897373,1736187047380,-500.0,9.321e-05,2]
[347897374,1736187047390,-500.0,9.321e-05,2]
[347897375,1736187047400,-1522.98,9.321e-05,2]
[347897376,1736187047409,-500.0,9.321e-05,2]
[347897377,1736187047419,-1991.59,9.321e-05,2]
[347897378,1736187047428,-629.74493472,9.321e-05,2]
[347897379,1736187047437,-500.0,9.321e-05,2]
[347897380,1736187047447,-500.0,9.321e-05,2]
[347897381,1736187047456,-500.0,9.321e-05,2]
[347897382,1736187047465,-500.0,9.321e-05,2]
[347897383,1736187047474,-1240.14,9.321e-05,2]
[347897384,1736187047483,-500.0,9.321e-05,2]
[347897385,1736187047494,-770.92,9.321e-05,2]
[347897386,1736187047504,-820.77,9.321e-05,2]
[347897387,1736187047514,-500.0,9.321e-05,2]
[347897388,1736187047523,-500.0,9.321e-05,2]
[347897389,1736187047532,-469.38640701,9.321e-05,2]
[347897390,1736187047541,-746.7,9.321e-05,2]
[347897391,1736187047550,-612.53,9.322e-05,2]
[347897392,1736187047559,-421.14,9.322e-05,2]
[347897393,1736187047568,-1181.16,9.322e-05,2]
[347897394,1736187047578,-3390.67,9.322e-05,2]
[347897395,1736187047587,-500.0,9.322e-05,2]
[347897396,1736187047596,-592.68,9.322e-05,2]
[347897397,1736187047610,-2186.69,9.322e-05,2]
[347897398,1736187047619,-200.79,9.322e-05,2]
[347897399,1736187047628,-1025.03,9.322e-05,2]
[347897400,1736187047637,-500.0,9.322e-05,2]
[347897401,1736187047647,-500.0,9.322e-05,2]
[347897402,1736187047656,-508.42,9.322e-05,2]
[347897403,1736187047665,-500.0,9.322e-05,2]
[347897404,1736187047677,-1773.4,9.322e-05,2]
[347897405,1736187047687,-500.0,9.322e-05,2]
[347897406,1736187047696,-500.0,9.322e-05,2]
[347897407,1736187047707,-500.0,9.322e-05,2]
[347897408,1736187047716,-500.0,9.322e-05,2]
[347897409,1736187047725,-500.0,9.322e-05,2]
[347897410,1736187047737,-500.0,9.322e-05,2]
[347897411,1736187047747,-819.87,9.322e-05,2]
[347897412,1736187047756,-500.0,9.322e-05,2]
[347897413,1736187047765,-538.0,9.322e-05,2]
[347897414,1736187047774,-3116.08,9.322e-05,2]
[347897415,1736187047784,-898.76,9.322e-05,2]
[347897416,1736187047793,-690.05,9.322e-05,2]
[347897417,1736187047803,-1153.69,9.322e-05,2]
[347897418,1736187047812,-1867.25,9.322e-05,2]
[347897419,1736187047821,-1126.05,9.322e-05,2]
[347897420,1736187047830,-500.0,9.323e-05,2]
[347897421,1736187047839,-500.0,9.323e-05,2]
[347897422,1736187047848,-1191.19,9.323e-05,2]
[347897423,1736187047857,-500.0,9.323e-05,2]
[347897424,1736187047866,-500.0,9.323e-05,2]
[347897425,1736187047875,-500.0,9.323e-05,2]
[347897426,1736187047884,-500.0,9.323e-05,2]
[347897427,1736187047894,-992.81,9.323e-05,2]
[347897428,1736187047904,-1424.11,9.323e-05,2]
[347897429,1736187047913,-3335.38,9.323e-05,2]
[347897430,1736187047922,-500.0,9.323e-05,2]
[347897431,1736187047932,-500.0,9.323e-05,2]
[347897432,1736187047941,-540.67,9.323e-05,2]